{"text_format":"1","workbook":"xlsx","n_sheets":4,"sheets":["Люкс","ТМ","Отчет","Лист1"],"not_rendered":{"charts":0,"images":3,"macros":1,"external_links":0,"defined_names":2,"comments":0,"pivot_tables":0},"unopened":[],"bounds":{"document_bytes":16777216,"sheet_cells":100000,"rows_first":2000,"rows_last":500,"rows_between":2000,"halvings":0,"cell_chars":16384,"cell_head_chars":4096},"cells_cut":0,"cells_raw":0,"read":"whole","date_system":"1900"}

{"sheet":"Люкс","index":0,"n_rows":301,"n_cols":9,"rows_kept":301,"cut":false,"hidden":false,"merged":[]}
["Наименование",null,null,"Вес  кг","Кол-во","Итого",{"$f":"F301","v":70},"№ п/п в отчете","Выбрано позиций"]
[]
["СТРОИТЕЛЬНЫЕ СМЕСИ \"ЛЮКС\"",null,null,null,null,{"$f":"D3*E3","v":0},null,{"$f":"IF(E3>0,H2+1,H2)","v":0},{"$f":"MAX(H3:H308)","v":2}]
["КЛЕЕВЫЕ СОСТАВЫ",null,null,null,null,0,null,0]
["ЛЮКС клей для плитки универсальный, внутр. и наруж.",null,null,25,null,{"$f":"D5*E5","v":0},null,{"$f":"IF(E5>0,H4+1,H4)","v":0}]
["ЛЮКС клей для плитки универсальный, внутр. и наруж.",null,null,10,5,50,null,{"$f":"IF(E6>0,H5+1,H5)","v":1}]
["ЛЮКС клей для плитки универсальный, внутр. и наруж.",null,null,2,10,20,null,2]
["ЛЮКС ПЛЮС клей для плитки повышенной фиксации, внутр. и наруж.",null,null,25,null,0,null,2]
["ЛЮКС ПЛЮС клей для плитки повышенной фиксации, внутр. и наруж.",null,null,5,null,0,null,2]
["ЛЮКС ПЛЮС КС клеевой состав для приклеивания теплоизоляционных плит и выполнения армированного слоя в системе теплоизоляции \"Тайфун\", внутр. и наруж.",null,null,25,null,0,null,2]
["ЛЮКС КЛЕЙ ЭЛАСТИЧНЫЙ 20кг",null,null,20,null,0,null,2]
["ЛЮКС гипсовый клеевой состав, внутр.",null,null,10,null,0,null,2]
["ЛЮКС гипсовый клеевой состав, внутр.",null,null,30,null,0,null,2]
["ШТУКАТУРНЫЕ СОСТАВЫ",null,null,null,null,0,null,2]
["ЛЮКС штукатурка цементная универсальная, внутр. и наруж.",null,null,5,null,0,null,2]
["ЛЮКС штукатурка цементная универсальная, внутр. и наруж.",null,null,25,null,0,null,2]
["ЛЮКС MODERN штукатурка гипсовая,  для ручного нанесения,     для сухих помещений, внутр.",null,null,5,null,0,null,2]
["ЛЮКС MODERN штукатурка гипсовая,  для ручного нанесения,     для сухих помещений, внутр.",null,null,30,null,0,null,2]
["ЛЮКС штукатурка гипсовая, для сухих помещений, внутр.",null,null,10,null,0,null,2]
["ШПАТЛЕВКИ",null,null,null,null,0,null,2]
["ЛЮКС MODERN шпатлевка гипсовая  БЕЛАЯ мелкодисперсная, внутр.",null,null,15,null,0,null,2]
["ЛЮКС EKOMODERN шпатлевка  БЕСПЫЛЕВАЯ гипсовая  БЕЛАЯ, внутр.",null,null,15,null,0,null,2]
["ЛЮКС POLIMODERN шпатлевка полимерная  БЕЛАЯ, внутр.",null,null,15,null,0,null,2]
["ЛЮКС шпатлевка гипсовая  БЕЛАЯ, внутр.",null,null,15,null,0,null,2]
["ЛЮКС шпатлевка гипсовая  БЕЛАЯ, внутр.",null,null,5,null,0,null,2]
["ЛЮКС шпатлевка гипсовая  БЕЛАЯ, внутр.",null,null,3,null,0,null,2]
["КРАСКА ИНТЕРЬЕРНАЯ АКРИЛОВАЯ ВОДНО-ДИСПЕРСИОННАЯ УЛЬТРАБЕЛАЯ LUX",null,null,null,null,0,null,2]
["КРАСКА ВД АК-22 ЭКО \"Люкс\" ультрабелая, для внутренних работ","1,05л (1,5кг) ВЕДРО",null,1.5,null,0,null,2]
["КРАСКА ВД АК-22 ЭКО \"Люкс\" ультрабелая, для внутренних работ","3,1л (4,5кг) ВЕДРО",null,4.5,null,0,null,2]
["КРАСКА ВД АК-22 ЭКО \"Люкс\" ультрабелая, для внутренних работ","5,2л (7,5кг) ВЕДРО",null,7.5,null,0,null,2]
["КРАСКА ВД АК-22 ЭКО \"Люкс\" ультрабелая, для внутренних работ","10,5л\n(15кг) ВЕДРО",null,15,null,0,null,2]
["Краска ВД-АК \"Тайфун Мастер\" ФАСАД А (белая) ведро 1,5кг",null,null,1.5,null,0,null,2]
["Краска ВД-АК \"Тайфун Мастер\" ФАСАД А (белая) ведро 15кг",null,null,15,null,0,null,2]
["СТЯЖКИ И ГИДРОИЗОЛЯЦИЯ",null,null,null,null,0,null,2]
["ЛЮКС самонивелирующий состав для пола толщиной 2-20 мм, внутр.",null,null,25,null,0,null,2]
["ЛЮКС состав гидроизоляционный специальный, наруж. и внутр.",null,null,20,null,0,null,2]
["ЛЮКС состав для стяжек цементный тол.10-100 мм.М150 нар./внутр",null,null,25,null,0,null,2]
["ТОВАР РАСФАСОВАННЫЙ ПТ ООО \"ТАЙФУН\"",null,null,null,null,0,null,2]
["ПОРТЛАНДЦЕМЕНТ  песчанистый серый ПЦП 500 СТБ 2115-2010 (производитель ОАО \"Красносельскстройматериалы\", РБ)",null,null,2,null,0,null,2]
["ПОРТЛАНДЦЕМЕНТ  белый CEM 1 52,5R EN 197-1:2011\n(производитель \"CIMSA\", Турция)",null,null,2,null,0,null,2]
["ИЗВЕСТЬ строительная порошкообразная воздушная гидратная без добавок ГОСТ 9179-77 (производитель ОАО \"Красносельскстройматериалы\", РБ)",null,null,1.5,null,0,null,2]
["МЕЛ мелкогранулированный высшего сорта ТУ РБ 5090118065.007-2004",null,null,2,null,0,null,2]
["LUX STANDARD W пена монтажная бытовая",null,null,0.5,null,0,null,2]
["LUX PROFESSIONAL L пена монтажная профессиональная",null,null,0.5,null,0,null,2]
["Мастика гидроизоляционная битумная Izolux №24 вед.",null,null,3,null,0,null,2]
[null,null,null,null,null,null,null,2]
[null,null,null,null,null,null,null,2]
[null,null,null,null,null,null,null,2]
[null,null,null,null,null,null,null,2]
[null,null,null,null,null,null,null,2]
[null,null,null,null,null,null,null,2]
[null,null,null,null,null,null,null,2]
[null,null,null,null,null,null,null,2]
[null,null,null,null,null,null,null,2]
[null,null,null,null,null,null,null,2]
[null,null,null,null,null,null,null,2]
[null,null,null,null,null,null,null,2]
[null,null,null,null,null,null,null,2]
[null,null,null,null,null,null,null,2]
[null,null,null,null,null,null,null,2]
[null,null,null,null,null,null,null,2]
[null,null,null,null,null,null,null,2]
[null,null,null,null,null,null,null,2]
[null,null,null,null,null,null,null,2]
[null,null,null,null,null,null,null,2]
[null,null,null,null,null,null,null,2]
[null,null,null,null,null,null,null,2]
[null,null,null,null,null,null,null,2]
[null,null,null,null,null,null,null,2]
[null,null,null,null,null,null,null,2]
[null,null,null,null,null,null,null,2]
[null,null,null,null,null,null,null,2]
[null,null,null,null,null,null,null,2]
[null,null,null,null,null,null,null,2]
[null,null,null,null,null,null,null,2]
[null,null,null,null,null,null,null,2]
[null,null,null,null,null,null,null,2]
[null,null,null,null,null,null,null,{"$f":"IF(E78>0,H77+1,H77)","v":2}]
[null,null,null,null,null,null,null,2]
[null,null,null,null,null,null,null,2]
[null,null,null,null,null,null,null,2]
[null,null,null,null,null,null,null,2]
[null,null,null,null,null,null,null,2]
[null,null,null,null,null,null,null,2]
[null,null,null,null,null,null,null,2]
[null,null,null,null,null,null,null,2]
[null,null,null,null,null,null,null,2]
[null,null,null,null,null,null,null,2]
[null,null,null,null,null,null,null,2]
[null,null,null,null,null,null,null,2]
[null,null,null,null,null,null,null,2]
[null,null,null,null,null,null,null,2]
[null,null,null,null,null,null,null,2]
[null,null,null,null,null,null,null,2]
[null,null,null,null,null,null,null,2]
[null,null,null,null,null,null,null,2]
[null,null,null,null,null,null,null,2]
[null,null,null,null,null,null,null,2]
[null,null,null,null,null,null,null,2]
[null,null,null,null,null,null,null,2]
[null,null,null,null,null,null,null,2]
[null,null,null,null,null,null,null,2]
[null,null,null,null,null,null,null,2]
[null,null,null,null,null,null,null,2]
[null,null,null,null,null,null,null,2]
[null,null,null,null,null,null,null,{"$f":"IF(E106>0,H105+1,H105)","v":2}]
[null,null,null,null,null,null,null,2]
[null,null,null,null,null,null,null,2]
[null,null,null,null,null,null,null,2]
[null,null,null,null,null,null,null,2]
[null,null,null,null,null,null,null,2]
[null,null,null,null,null,null,null,2]
[null,null,null,null,null,null,null,2]
[null,null,null,null,null,null,null,2]
[null,null,null,null,null,null,null,2]
[null,null,null,null,null,null,null,2]
[null,null,null,null,null,null,null,2]
[null,null,null,null,null,null,null,2]
[null,null,null,null,null,null,null,2]
[null,null,null,null,null,null,null,2]
[null,null,null,null,null,null,null,2]
[null,null,null,null,null,null,null,2]
[null,null,null,null,null,null,null,2]
[null,null,null,null,null,null,null,2]
[null,null,null,null,null,null,null,2]
[null,null,null,null,null,null,null,2]
[null,null,null,null,null,null,null,2]
[null,null,null,null,null,null,null,2]
[null,null,null,null,null,null,null,2]
[null,null,null,null,null,null,null,2]
[null,null,null,null,null,null,null,2]
[null,null,null,null,null,null,null,2]
[null,null,null,null,null,null,null,2]
[null,null,null,null,null,null,null,2]
[null,null,null,null,null,null,null,2]
[null,null,null,null,null,null,null,2]
[null,null,null,null,null,null,null,2]
[null,null,null,null,null,null,null,2]
[null,null,null,null,null,null,null,2]
[null,null,null,null,null,null,null,2]
[null,null,null,null,null,null,null,2]
[null,null,null,null,null,null,null,{"$f":"IF(E142>0,H141+1,H141)","v":2}]
[null,null,null,null,null,null,null,2]
[null,null,null,null,null,null,null,2]
[null,null,null,null,null,null,null,2]
[null,null,null,null,null,null,null,2]
[null,null,null,null,null,null,null,2]
[null,null,null,null,null,null,null,2]
[null,null,null,null,null,null,null,2]
[null,null,null,null,null,null,null,2]
[null,null,null,null,null,null,null,2]
[null,null,null,null,null,null,null,2]
[null,null,null,null,null,null,null,2]
[null,null,null,null,null,null,null,2]
[null,null,null,null,null,null,null,2]
[null,null,null,null,null,null,null,2]
[null,null,null,null,null,null,null,2]
[null,null,null,null,null,null,null,2]
[null,null,null,null,null,null,null,2]
[null,null,null,null,null,null,null,2]
[null,null,null,null,null,null,null,2]
[null,null,null,null,null,null,null,2]
[null,null,null,null,null,null,null,2]
[null,null,null,null,null,null,null,2]
[null,null,null,null,null,null,null,2]
[null,null,null,null,null,null,null,2]
[null,null,null,null,null,null,null,2]
[null,null,null,null,null,null,null,2]
[null,null,null,null,null,null,null,2]
[null,null,null,null,null,null,null,2]
[null,null,null,null,null,null,null,2]
[null,null,null,null,null,null,null,2]
[null,null,null,null,null,null,null,2]
[null,null,null,null,null,null,null,2]
[null,null,null,null,null,null,null,2]
[null,null,null,null,null,null,null,2]
[null,null,null,null,null,null,null,2]
[null,null,null,null,null,null,null,2]
[null,null,null,null,null,null,null,2]
[null,null,null,null,null,null,null,2]
[null,null,null,null,null,null,null,2]
[null,null,null,null,null,null,null,2]
[null,null,null,null,null,null,null,2]
[null,null,null,null,null,null,null,2]
[null,null,null,null,null,null,null,2]
[null,null,null,null,null,null,null,2]
[null,null,null,null,null,null,null,2]
[null,null,null,null,null,null,null,2]
[null,null,null,null,null,null,null,2]
[null,null,null,null,null,null,null,2]
[null,null,null,null,null,null,null,2]
[null,null,null,null,null,null,null,2]
[null,null,null,null,null,null,null,2]
[null,null,null,null,null,null,null,2]
[null,null,null,null,null,null,null,2]
[null,null,null,null,null,null,null,2]
[null,null,null,null,null,null,null,2]
[null,null,null,null,null,null,null,2]
[null,null,null,null,null,null,null,2]
[null,null,null,null,null,null,null,2]
[null,null,null,null,null,null,null,2]
[null,null,null,null,null,null,null,2]
[null,null,null,null,null,null,null,2]
[null,null,null,null,null,null,null,2]
[null,null,null,null,null,null,null,2]
[null,null,null,null,null,null,null,{"$f":"IF(E206>0,H205+1,H205)","v":2}]
[null,null,null,null,null,null,null,2]
[null,null,null,null,null,null,null,2]
[null,null,null,null,null,null,null,2]
[null,null,null,null,null,null,null,2]
[null,null,null,null,null,null,null,2]
[null,null,null,null,null,null,null,2]
[null,null,null,null,null,null,null,2]
[null,null,null,null,null,null,null,2]
[null,null,null,null,null,null,null,2]
[null,null,null,null,null,null,null,2]
[null,null,null,null,null,null,null,2]
[null,null,null,null,null,null,null,2]
[null,null,null,null,null,null,null,2]
[null,null,null,null,null,null,null,2]
[null,null,null,null,null,null,null,2]
[null,null,null,null,null,null,null,2]
[null,null,null,null,null,null,null,2]
[null,null,null,null,null,null,null,2]
[null,null,null,null,null,null,null,2]
[null,null,null,null,null,null,null,2]
[null,null,null,null,null,null,null,2]
[null,null,null,null,null,null,null,2]
[null,null,null,null,null,null,null,2]
[null,null,null,null,null,null,null,2]
[null,null,null,null,null,null,null,2]
[null,null,null,null,null,null,null,2]
[null,null,null,null,null,null,null,2]
[null,null,null,null,null,null,null,2]
[null,null,null,null,null,null,null,2]
[null,null,null,null,null,null,null,2]
[null,null,null,null,null,null,null,2]
[null,null,null,null,null,null,null,2]
[null,null,null,null,null,null,null,2]
[null,null,null,null,null,null,null,2]
[null,null,null,null,null,null,null,2]
[null,null,null,null,null,null,null,2]
[null,null,null,null,null,null,null,2]
[null,null,null,null,null,null,null,2]
[null,null,null,null,null,null,null,2]
[null,null,null,null,null,null,null,2]
[null,null,null,null,null,null,null,2]
[null,null,null,null,null,null,null,2]
[null,null,null,null,null,null,null,2]
[null,null,null,null,null,null,null,2]
[null,null,null,null,null,null,null,2]
[null,null,null,null,null,null,null,2]
[null,null,null,null,null,null,null,2]
[null,null,null,null,null,null,null,2]
[null,null,null,null,null,null,null,2]
[null,null,null,null,null,null,null,2]
[null,null,null,null,null,null,null,2]
[null,null,null,null,null,null,null,2]
[null,null,null,null,null,null,null,2]
[null,null,null,null,null,null,null,2]
[null,null,null,null,null,null,null,2]
[null,null,null,null,null,null,null,2]
[null,null,null,null,null,null,null,2]
[null,null,null,null,null,null,null,2]
[null,null,null,null,null,null,null,2]
[null,null,null,null,null,null,null,2]
[null,null,null,null,null,null,null,2]
[null,null,null,null,null,null,null,2]
[null,null,null,null,null,null,null,2]
[null,null,null,null,null,null,null,{"$f":"IF(E270>0,H269+1,H269)","v":2}]
[null,null,null,null,null,null,null,2]
[null,null,null,null,null,null,null,2]
[null,null,null,null,null,null,null,2]
[null,null,null,null,null,null,null,2]
[null,null,null,null,null,null,null,2]
[null,null,null,null,null,null,null,2]
[null,null,null,null,null,null,null,2]
[null,null,null,null,null,null,null,2]
[null,null,null,null,null,null,null,2]
[null,null,null,null,null,null,null,2]
[null,null,null,null,null,null,null,2]
[null,null,null,null,null,null,null,2]
[null,null,null,null,null,null,null,2]
[null,null,null,null,null,null,null,2]
[null,null,null,null,null,null,null,2]
[null,null,null,null,null,null,null,2]
[null,null,null,null,null,null,null,2]
[null,null,null,null,null,null,null,2]
[null,null,null,null,null,null,null,2]
[null,null,null,null,null,null,null,2]
[null,null,null,null,null,null,null,2]
[null,null,null,null,null,null,null,2]
[null,null,null,null,null,null,null,2]
[null,null,null,null,null,null,null,2]
[null,null,null,null,null,null,null,2]
[null,null,null,null,null,null,null,2]
[null,null,null,null,null,null,null,2]
[null,null,null,null,null,null,null,2]
[null,null,null,null,null,null,null,2]
[null,null,null,null,null,null,null,2]
[null,null,null,null,null,{"$f":"SUM(F5:F300)","v":70}]

{"sheet":"ТМ","index":1,"n_rows":301,"n_cols":9,"rows_kept":301,"cut":false,"hidden":false,"merged":[[0,5,1,5],[0,6,1,6],[0,0,1,2],[0,3,1,3]]}
["Наименование",null,null,"Вес  кг","Кол-во","Итого",{"$f":"F301","v":250},"№ п/п в отчете","Выбрано позиций"]
[]
["ПРОФЕССИОНАЛЬНЫЕ СТРОИТЕЛЬНЫЕ СМЕСИ \"ТАЙФУН МАСТЕР\"",null,null,null,null,null,null,{"$f":"Люкс!I3","v":2},{"$f":"MAX(H3:H307)","v":4}]
["КЛЕЕВЫЕ И КЛАДОЧНЫЕ СОСТАВЫ",null,null,null,null,null,null,{"$f":"IF(E4>0,H3+1,H3)","v":2}]
["ТАЙФУН МАСТЕР № 11",null,null,25,6,{"$f":"D5*E5","v":150},null,3]
["ТАЙФУН МАСТЕР № 11  БЕЛЫЙ",null,null,5,null,{"$f":"D6*E6","v":0},null,3]
["ТАЙФУН МАСТЕР № 11  БЕЛЫЙ",null,null,25,null,0,null,3]
["ТАЙФУН МАСТЕР № 11М",null,null,25,null,0,null,3]
["ТАЙФУН МАСТЕР № 12",null,null,25,null,0,null,3]
["ТАЙФУН МАСТЕР № 12М",null,null,25,null,0,null,3]
["ТАЙФУН МАСТЕР №16 гипсовый клеевой состав, внутр",null,null,30,null,0,null,3]
["ТАЙФУН МАСТЕР № 18",null,null,25,null,0,null,3]
["ТАЙФУН МАСТЕР № 18М",null,null,25,null,0,null,3]
["ТАЙФУН МАСТЕР ПЕЧНИК (2 в 1)",null,null,20,null,0,null,3]
["ШТУКАТУРНЫЕ СОСТАВЫ",null,null,null,null,null,null,3]
["ТАЙФУН МАСТЕР № 20",null,null,30,null,0,null,3]
["ТАЙФУН МАСТЕР №  22С",null,null,25,null,0,null,3]
["ТАЙФУН МАСТЕР № 23.1 (серая 1 мм)",null,null,25,null,0,null,3]
["ТАЙФУН МАСТЕР № 23.2 (серая 2 мм)",null,null,25,4,100,null,4]
["ТАЙФУН МАСТЕР № 23.3 (серая 3 мм)",null,null,25,null,0,null,4]
["ТАЙФУН МАСТЕР № 23.1 (белая 1 мм)",null,null,25,null,0,null,4]
["ТАЙФУН МАСТЕР № 23.2 (белая 2 мм)",null,null,25,null,0,null,4]
["ТАЙФУН МАСТЕР № 23.3 (белая 3 мм)",null,null,25,null,0,null,4]
["ТАЙФУН МАСТЕР № 23К-1 (белая 1 мм)",null,null,25,null,0,null,4]
["ТАЙФУН МАСТЕР № 23К-2 (белая 1,5 мм)",null,null,25,null,0,null,4]
["ТАЙФУН МАСТЕР № 23К-3 (белая 2,5 мм)",null,null,25,null,0,null,4]
["ТАЙФУН МАСТЕР DEKO M  ",null,null,15,null,0,null,4]
["ШПАТЛЕВКИ",null,null,null,null,null,null,4]
["ТАЙФУН МАСТЕР № 30",null,null,5,null,0,null,4]
["ТАЙФУН МАСТЕР № 30",null,null,15,null,0,null,4]
["ТАЙФУН МАСТЕР УНИ-ШОВ",null,null,5,null,0,null,4]
["ТАЙФУН МАСТЕР ФИНИШ",null,null,1.5,null,0,null,4]
["ТАЙФУН МАСТЕР ФИНИШ",null,null,4,null,0,null,4]
["ТАЙФУН МАСТЕР ФИНИШ",null,null,8,null,0,null,4]
["ТАЙФУН МАСТЕР ФИНИШ",null,null,17,null,0,null,4]
["ТАЙФУН МАСТЕР № 32с",null,null,25,null,0,null,4]
["ТАЙФУН МАСТЕР № 32с",null,null,null,null,0,null,4]
["ТАЙФУН МАСТЕР № 32е",null,null,4,null,0,null,4]
["ТАЙФУН МАСТЕР № 32е",null,null,25,null,0,null,4]
["ТАЙФУН МАСТЕР № 33 шпатлевка гипсовая БЕЛАЯ \"старт-финиш\" усиленная",null,null,15,null,0,null,4]
["ТАЙФУН МАСТЕР №35 строительный гипс",null,null,15,null,0,null,4]
["ТАЙФУН МАСТЕР №35 строительный гипс",null,null,2,null,0,null,4]
["Стяжки и гидроизоляция",null,null,null,null,null,null,4]
["ТАЙФУН МАСТЕР № 42",null,null,5,null,0,null,4]
["ТАЙФУН МАСТЕР № 42",null,null,25,null,0,null,4]
["ТАЙФУН МАСТЕР № 44",null,null,25,null,0,null,4]
["СОСТАВЫ ДЛЯ ТЕПЛОИЗОЛЯЦИИ ФАСАДОВ",null,null,null,null,null,null,4]
["ТАЙФУН МАСТЕР № 50",null,null,25,null,0,null,4]
["ТАЙФУН МАСТЕР № 50М",null,null,25,null,0,null,4]
["ТАЙФУН МАСТЕР № 51",null,null,25,null,0,null,4]
["ТАЙФУН МАСТЕР № 51М",null,null,25,null,0,null,4]
["Грунты",null,null,null,null,null,null,4]
["ТАЙФУН МАСТЕР № 100",null,null,1,null,0,null,4]
["ТАЙФУН МАСТЕР № 100",null,null,5,null,0,null,4]
["ТАЙФУН МАСТЕР № 100",null,null,10,null,0,null,4]
["ТАЙФУН МАСТЕР №102",null,null,1,null,0,null,4]
["ТАЙФУН МАСТЕР №102",null,null,5,null,0,null,4]
["ТАЙФУН МАСТЕР №102",null,null,10,null,0,null,4]
["ТАЙФУН МАСТЕР №104",null,null,1,null,0,null,4]
["ТАЙФУН МАСТЕР №104",null,null,5,null,0,null,4]
["ТАЙФУН МАСТЕР №104",null,null,10,null,0,null,4]
["ТАЙФУН МАСТЕР №103 \"БЕТОН-КОНТАКТ\"",null,null,1.4,null,0,null,4]
["ТАЙФУН МАСТЕР №103 \"БЕТОН-КОНТАКТ\"",null,null,4,null,0,null,4]
["ТАЙФУН МАСТЕР №103 \"БЕТОН-КОНТАКТ\"",null,null,15,null,0,null,4]
["Средство противогрибковое \"Тайфун Мастер\" ГРИБОСТОП",null,null,1,null,0,null,4]
["ATLAS LUX фуга для заполнения швов белая, внутр. и наруж. № 001",null,null,2,null,0,null,4]
["ATLAS LUX фуга для заполнения швов , внутр. и наруж. № 036",null,null,2,null,0,null,4]
["ATLAS LUX фуга для заполнения швов , внутр. и наруж. № 020",null,null,2,null,0,null,4]
["ATLAS LUX фуга для заполнения швов кирпичная, внутр. и наруж. № 021",null,null,2,null,0,null,4]
["ATLAS LUX фуга для  швов темно-коричневая, внутр. и наруж. № 019",null,null,2,null,0,null,4]
["ATLAS LUX фуга для  швов темно-коричневая, внутр. и наруж. № 024",null,null,2,null,0,null,4]
["ATLAS LUX фуга для  швов бежево-пастельная, внутр. и наруж. № 018",null,null,2,null,0,null,4]
["ATLAS LUX фуга для заполнения швов, внутр. и наруж. № 035",null,null,2,null,0,null,4]
[null,null,null,null,null,{"$f":"D74*E74","v":0},null,4]
[null,null,null,null,null,null,null,{"$f":"IF(E75>0,H74+1,H74)","v":4}]
[null,null,null,null,null,null,null,4]
[null,null,null,null,null,null,null,4]
[null,null,null,null,null,null,null,4]
[null,null,null,null,null,null,null,4]
[null,null,null,null,null,null,null,4]
[null,null,null,null,null,null,null,4]
[null,null,null,null,null,null,null,4]
[null,null,null,null,null,null,null,4]
[null,null,null,null,null,null,null,4]
[null,null,null,null,null,null,null,4]
[null,null,null,null,null,null,null,4]
[null,null,null,null,null,null,null,4]
[null,null,null,null,null,null,null,4]
[null,null,null,null,null,null,null,4]
[null,null,null,null,null,null,null,4]
[null,null,null,null,null,null,null,4]
[null,null,null,null,null,null,null,4]
[null,null,null,null,null,null,null,4]
[null,null,null,null,null,null,null,4]
[null,null,null,null,null,null,null,4]
[null,null,null,null,null,null,null,4]
[null,null,null,null,null,null,null,4]
[null,null,null,null,null,null,null,4]
[null,null,null,null,null,null,null,4]
[null,null,null,null,null,null,null,4]
[null,null,null,null,null,null,null,4]
[null,null,null,null,null,null,null,4]
[null,null,null,null,null,null,null,4]
[null,null,null,null,null,null,null,4]
[null,null,null,null,null,null,null,4]
[null,null,null,null,null,null,null,4]
[null,null,null,null,null,null,null,4]
[null,null,null,null,null,null,null,4]
[null,null,null,null,null,null,null,4]
[null,null,null,null,null,null,null,4]
[null,null,null,null,null,null,null,4]
[null,null,null,null,null,null,null,4]
[null,null,null,null,null,null,null,4]
[null,null,null,null,null,null,null,4]
[null,null,null,null,null,null,null,4]
[null,null,null,null,null,null,null,4]
[null,null,null,null,null,null,null,4]
[null,null,null,null,null,null,null,4]
[null,null,null,null,null,null,null,4]
[null,null,null,null,null,null,null,4]
[null,null,null,null,null,null,null,4]
[null,null,null,null,null,null,null,4]
[null,null,null,null,null,null,null,4]
[null,null,null,null,null,null,null,4]
[null,null,null,null,null,null,null,4]
[null,null,null,null,null,null,null,4]
[null,null,null,null,null,null,null,4]
[null,null,null,null,null,null,null,4]
[null,null,null,null,null,null,null,4]
[null,null,null,null,null,null,null,4]
[null,null,null,null,null,null,null,4]
[null,null,null,null,null,null,null,4]
[null,null,null,null,null,null,null,4]
[null,null,null,null,null,null,null,4]
[null,null,null,null,null,null,null,4]
[null,null,null,null,null,null,null,4]
[null,null,null,null,null,null,null,4]
[null,null,null,null,null,null,null,4]
[null,null,null,null,null,null,null,{"$f":"IF(E139>0,H138+1,H138)","v":4}]
[null,null,null,null,null,null,null,4]
[null,null,null,null,null,null,null,4]
[null,null,null,null,null,null,null,4]
[null,null,null,null,null,null,null,4]
[null,null,null,null,null,null,null,4]
[null,null,null,null,null,null,null,4]
[null,null,null,null,null,null,null,4]
[null,null,null,null,null,null,null,4]
[null,null,null,null,null,null,null,4]
[null,null,null,null,null,null,null,4]
[null,null,null,null,null,null,null,4]
[null,null,null,null,null,null,null,4]
[null,null,null,null,null,null,null,4]
[null,null,null,null,null,null,null,4]
[null,null,null,null,null,null,null,4]
[null,null,null,null,null,null,null,4]
[null,null,null,null,null,null,null,4]
[null,null,null,null,null,null,null,4]
[null,null,null,null,null,null,null,4]
[null,null,null,null,null,null,null,4]
[null,null,null,null,null,null,null,4]
[null,null,null,null,null,null,null,4]
[null,null,null,null,null,null,null,4]
[null,null,null,null,null,null,null,4]
[null,null,null,null,null,null,null,4]
[null,null,null,null,null,null,null,4]
[null,null,null,null,null,null,null,4]
[null,null,null,null,null,null,null,4]
[null,null,null,null,null,null,null,4]
[null,null,null,null,null,null,null,4]
[null,null,null,null,null,null,null,4]
[null,null,null,null,null,null,null,4]
[null,null,null,null,null,null,null,4]
[null,null,null,null,null,null,null,4]
[null,null,null,null,null,null,null,4]
[null,null,null,null,null,null,null,4]
[null,null,null,null,null,null,null,4]
[null,null,null,null,null,null,null,4]
[null,null,null,null,null,null,null,4]
[null,null,null,null,null,null,null,4]
[null,null,null,null,null,null,null,4]
[null,null,null,null,null,null,null,4]
[null,null,null,null,null,null,null,4]
[null,null,null,null,null,null,null,4]
[null,null,null,null,null,null,null,4]
[null,null,null,null,null,null,null,4]
[null,null,null,null,null,null,null,{"$f":"IF(E186>0,H185+1,H185)","v":4}]
[null,null,null,null,null,null,null,4]
[null,null,null,null,null,null,null,4]
[null,null,null,null,null,null,null,4]
[null,null,null,null,null,null,null,4]
[null,null,null,null,null,null,null,4]
[null,null,null,null,null,null,null,4]
[null,null,null,null,null,null,null,4]
[null,null,null,null,null,null,null,4]
[null,null,null,null,null,null,null,4]
[null,null,null,null,null,null,null,4]
[null,null,null,null,null,null,null,4]
[null,null,null,null,null,null,null,4]
[null,null,null,null,null,null,null,4]
[null,null,null,null,null,null,null,4]
[null,null,null,null,null,null,null,4]
[null,null,null,null,null,null,null,4]
[null,null,null,null,null,null,null,{"$f":"IF(E203>0,H202+1,H202)","v":4}]
[null,null,null,null,null,null,null,4]
[null,null,null,null,null,null,null,4]
[null,null,null,null,null,null,null,4]
[null,null,null,null,null,null,null,4]
[null,null,null,null,null,null,null,4]
[null,null,null,null,null,null,null,4]
[null,null,null,null,null,null,null,4]
[null,null,null,null,null,null,null,4]
[null,null,null,null,null,null,null,4]
[null,null,null,null,null,null,null,4]
[null,null,null,null,null,null,null,4]
[null,null,null,null,null,null,null,4]
[null,null,null,null,null,null,null,4]
[null,null,null,null,null,null,null,4]
[null,null,null,null,null,null,null,4]
[null,null,null,null,null,null,null,4]
[null,null,null,null,null,null,null,4]
[null,null,null,null,null,null,null,4]
[null,null,null,null,null,null,null,4]
[null,null,null,null,null,null,null,4]
[null,null,null,null,null,null,null,4]
[null,null,null,null,null,null,null,4]
[null,null,null,null,null,null,null,4]
[null,null,null,null,null,null,null,4]
[null,null,null,null,null,null,null,4]
[null,null,null,null,null,null,null,4]
[null,null,null,null,null,null,null,4]
[null,null,null,null,null,null,null,4]
[null,null,null,null,null,null,null,4]
[null,null,null,null,null,null,null,4]
[null,null,null,null,null,null,null,4]
[null,null,null,null,null,null,null,4]
[null,null,null,null,null,null,null,4]
[null,null,null,null,null,null,null,4]
[null,null,null,null,null,null,null,4]
[null,null,null,null,null,null,null,4]
[null,null,null,null,null,null,null,4]
[null,null,null,null,null,null,null,4]
[null,null,null,null,null,null,null,4]
[null,null,null,null,null,null,null,4]
[null,null,null,null,null,null,null,4]
[null,null,null,null,null,null,null,4]
[null,null,null,null,null,null,null,4]
[null,null,null,null,null,null,null,4]
[null,null,null,null,null,null,null,4]
[null,null,null,null,null,null,null,4]
[null,null,null,null,null,null,null,4]
[null,null,null,null,null,null,null,4]
[null,null,null,null,null,null,null,4]
[null,null,null,null,null,null,null,4]
[null,null,null,null,null,null,null,4]
[null,null,null,null,null,null,null,4]
[null,null,null,null,null,null,null,4]
[null,null,null,null,null,null,null,4]
[null,null,null,null,null,null,null,4]
[null,null,null,null,null,null,null,4]
[null,null,null,null,null,null,null,4]
[null,null,null,null,null,null,null,4]
[null,null,null,null,null,null,null,4]
[null,null,null,null,null,null,null,4]
[null,null,null,null,null,null,null,4]
[null,null,null,null,null,null,null,4]
[null,null,null,null,null,null,null,4]
[null,null,null,null,null,null,null,{"$f":"IF(E267>0,H266+1,H266)","v":4}]
[null,null,null,null,null,null,null,4]
[null,null,null,null,null,null,null,4]
[null,null,null,null,null,null,null,4]
[null,null,null,null,null,null,null,4]
[null,null,null,null,null,null,null,4]
[null,null,null,null,null,null,null,4]
[null,null,null,null,null,null,null,4]
[null,null,null,null,null,null,null,4]
[null,null,null,null,null,null,null,4]
[null,null,null,null,null,null,null,4]
[null,null,null,null,null,null,null,4]
[null,null,null,null,null,null,null,4]
[null,null,null,null,null,null,null,4]
[null,null,null,null,null,null,null,4]
[null,null,null,null,null,null,null,4]
[null,null,null,null,null,null,null,4]
[null,null,null,null,null,null,null,4]
[null,null,null,null,null,null,null,4]
[null,null,null,null,null,null,null,4]
[null,null,null,null,null,null,null,4]
[null,null,null,null,null,null,null,4]
[null,null,null,null,null,null,null,4]
[null,null,null,null,null,null,null,4]
[null,null,null,null,null,null,null,4]
[null,null,null,null,null,null,null,4]
[null,null,null,null,null,null,null,4]
[null,null,null,null,null,null,null,4]
[null,null,null,null,null,null,null,4]
[null,null,null,null,null,null,null,4]
[null,null,null,null,null,null,null,4]
[null,null,null,null,null,null,null,4]
[null,null,null,null,null,null,null,4]
[null,null,null,null,null,null,null,4]
[null,null,null,null,null,{"$f":"SUM(F5:F300)","v":250}]

{"sheet":"Отчет","index":2,"n_rows":13,"n_cols":6,"rows_kept":13,"cut":false,"hidden":false,"merged":[]}
[null,null,"Выбрано позиций в прайсе:",{"$f":"ТМ!I3","v":4}]
[]
[]
[]
[null,null,"ЧТУП \" Якубовского В.С.\""]
[null,"№ п/п","Наименование позиции","Масса ед.","Кол-во","Масса по позиции"]
[null,1,{"$f":"IF(Таблица1[[#This Row],[№ п/п]]<=Люкс!$I$3,INDEX(Люкс!$A$3:$F$308,MATCH(Таблица1[№ п/п],Люкс!$H$3:$H$308,0),1),INDEX(ТМ!$A$3:$F$307,MATCH(Таблица1[№ п/п],ТМ!$H$3:$H$307,0),1))","v":"ЛЮКС клей для плитки универсальный, внутр. и наруж."},{"$f":"IF(Таблица1[[#This Row],[№ п/п]]<=Люкс!$I$3,INDEX(Люкс!$A$3:$F$308,MATCH(Таблица1[№ п/п],Люкс!$H$3:$H$308,0),4),INDEX(ТМ!$A$3:$F$307,MATCH(Таблица1[№ п/п],ТМ!$H$3:$H$307,0),4))","v":10},{"$f":"IF(Таблица1[[#This Row],[№ п/п]]<=Люкс!$I$3,INDEX(Люкс!$A$3:$F$308,MATCH(Таблица1[№ п/п],Люкс!$H$3:$H$308,0),5),INDEX(ТМ!$A$3:$F$307,MATCH(Таблица1[№ п/п],ТМ!$H$3:$H$307,0),5))","v":5},{"$f":"IF(Таблица1[[#This Row],[№ п/п]]<=Люкс!$I$3,INDEX(Люкс!$A$3:$F$308,MATCH(Таблица1[№ п/п],Люкс!$H$3:$H$308,0),6),INDEX(ТМ!$A$3:$F$307,MATCH(Таблица1[№ п/п],ТМ!$H$3:$H$307,0),6))","v":50}]
[null,2,{"$f":"IF(Таблица1[[#This Row],[№ п/п]]<=Люкс!$I$3,INDEX(Люкс!$A$3:$F$308,MATCH(Таблица1[№ п/п],Люкс!$H$3:$H$308,0),1),INDEX(ТМ!$A$3:$F$307,MATCH(Таблица1[№ п/п],ТМ!$H$3:$H$307,0),1))","v":"ЛЮКС клей для плитки универсальный, внутр. и наруж."},{"$f":"IF(Таблица1[[#This Row],[№ п/п]]<=Люкс!$I$3,INDEX(Люкс!$A$3:$F$308,MATCH(Таблица1[№ п/п],Люкс!$H$3:$H$308,0),4),INDEX(ТМ!$A$3:$F$307,MATCH(Таблица1[№ п/п],ТМ!$H$3:$H$307,0),4))","v":2},{"$f":"IF(Таблица1[[#This Row],[№ п/п]]<=Люкс!$I$3,INDEX(Люкс!$A$3:$F$308,MATCH(Таблица1[№ п/п],Люкс!$H$3:$H$308,0),5),INDEX(ТМ!$A$3:$F$307,MATCH(Таблица1[№ п/п],ТМ!$H$3:$H$307,0),5))","v":10},{"$f":"IF(Таблица1[[#This Row],[№ п/п]]<=Люкс!$I$3,INDEX(Люкс!$A$3:$F$308,MATCH(Таблица1[№ п/п],Люкс!$H$3:$H$308,0),6),INDEX(ТМ!$A$3:$F$307,MATCH(Таблица1[№ п/п],ТМ!$H$3:$H$307,0),6))","v":20}]
[null,3,{"$f":"IF(Таблица1[[#This Row],[№ п/п]]<=Люкс!$I$3,INDEX(Люкс!$A$3:$F$308,MATCH(Таблица1[№ п/п],Люкс!$H$3:$H$308,0),1),INDEX(ТМ!$A$3:$F$307,MATCH(Таблица1[№ п/п],ТМ!$H$3:$H$307,0),1))","v":"ТАЙФУН МАСТЕР № 11"},{"$f":"IF(Таблица1[[#This Row],[№ п/п]]<=Люкс!$I$3,INDEX(Люкс!$A$3:$F$308,MATCH(Таблица1[№ п/п],Люкс!$H$3:$H$308,0),4),INDEX(ТМ!$A$3:$F$307,MATCH(Таблица1[№ п/п],ТМ!$H$3:$H$307,0),4))","v":25},{"$f":"IF(Таблица1[[#This Row],[№ п/п]]<=Люкс!$I$3,INDEX(Люкс!$A$3:$F$308,MATCH(Таблица1[№ п/п],Люкс!$H$3:$H$308,0),5),INDEX(ТМ!$A$3:$F$307,MATCH(Таблица1[№ п/п],ТМ!$H$3:$H$307,0),5))","v":6},{"$f":"IF(Таблица1[[#This Row],[№ п/п]]<=Люкс!$I$3,INDEX(Люкс!$A$3:$F$308,MATCH(Таблица1[№ п/п],Люкс!$H$3:$H$308,0),6),INDEX(ТМ!$A$3:$F$307,MATCH(Таблица1[№ п/п],ТМ!$H$3:$H$307,0),6))","v":150}]
[null,4,{"$f":"IF(Таблица1[[#This Row],[№ п/п]]<=Люкс!$I$3,INDEX(Люкс!$A$3:$F$308,MATCH(Таблица1[№ п/п],Люкс!$H$3:$H$308,0),1),INDEX(ТМ!$A$3:$F$307,MATCH(Таблица1[№ п/п],ТМ!$H$3:$H$307,0),1))","v":"ТАЙФУН МАСТЕР № 23.2 (серая 2 мм)"},{"$f":"IF(Таблица1[[#This Row],[№ п/п]]<=Люкс!$I$3,INDEX(Люкс!$A$3:$F$308,MATCH(Таблица1[№ п/п],Люкс!$H$3:$H$308,0),4),INDEX(ТМ!$A$3:$F$307,MATCH(Таблица1[№ п/п],ТМ!$H$3:$H$307,0),4))","v":25},{"$f":"IF(Таблица1[[#This Row],[№ п/п]]<=Люкс!$I$3,INDEX(Люкс!$A$3:$F$308,MATCH(Таблица1[№ п/п],Люкс!$H$3:$H$308,0),5),INDEX(ТМ!$A$3:$F$307,MATCH(Таблица1[№ п/п],ТМ!$H$3:$H$307,0),5))","v":4},{"$f":"IF(Таблица1[[#This Row],[№ п/п]]<=Люкс!$I$3,INDEX(Люкс!$A$3:$F$308,MATCH(Таблица1[№ п/п],Люкс!$H$3:$H$308,0),6),INDEX(ТМ!$A$3:$F$307,MATCH(Таблица1[№ п/п],ТМ!$H$3:$H$307,0),6))","v":100}]
[null,1,{"$f":"IF(Таблица1[[#This Row],[№ п/п]]<=Люкс!$I$3,INDEX(Люкс!$A$3:$F$308,MATCH(Таблица1[№ п/п],Люкс!$H$3:$H$308,0),1),INDEX(ТМ!$A$3:$F$307,MATCH(Таблица1[№ п/п],ТМ!$H$3:$H$307,0),1))","v":"ЛЮКС клей для плитки универсальный, внутр. и наруж."},{"$f":"IF(Таблица1[[#This Row],[№ п/п]]<=Люкс!$I$3,INDEX(Люкс!$A$3:$F$308,MATCH(Таблица1[№ п/п],Люкс!$H$3:$H$308,0),4),INDEX(ТМ!$A$3:$F$307,MATCH(Таблица1[№ п/п],ТМ!$H$3:$H$307,0),4))","v":10},{"$f":"IF(Таблица1[[#This Row],[№ п/п]]<=Люкс!$I$3,INDEX(Люкс!$A$3:$F$308,MATCH(Таблица1[№ п/п],Люкс!$H$3:$H$308,0),5),INDEX(ТМ!$A$3:$F$307,MATCH(Таблица1[№ п/п],ТМ!$H$3:$H$307,0),5))","v":5},{"$f":"IF(Таблица1[[#This Row],[№ п/п]]<=Люкс!$I$3,INDEX(Люкс!$A$3:$F$308,MATCH(Таблица1[№ п/п],Люкс!$H$3:$H$308,0),6),INDEX(ТМ!$A$3:$F$307,MATCH(Таблица1[№ п/п],ТМ!$H$3:$H$307,0),6))","v":50}]
[null,2,{"$f":"IF(Таблица1[[#This Row],[№ п/п]]<=Люкс!$I$3,INDEX(Люкс!$A$3:$F$308,MATCH(Таблица1[№ п/п],Люкс!$H$3:$H$308,0),1),INDEX(ТМ!$A$3:$F$307,MATCH(Таблица1[№ п/п],ТМ!$H$3:$H$307,0),1))","v":"ЛЮКС клей для плитки универсальный, внутр. и наруж."},{"$f":"IF(Таблица1[[#This Row],[№ п/п]]<=Люкс!$I$3,INDEX(Люкс!$A$3:$F$308,MATCH(Таблица1[№ п/п],Люкс!$H$3:$H$308,0),4),INDEX(ТМ!$A$3:$F$307,MATCH(Таблица1[№ п/п],ТМ!$H$3:$H$307,0),4))","v":2},{"$f":"IF(Таблица1[[#This Row],[№ п/п]]<=Люкс!$I$3,INDEX(Люкс!$A$3:$F$308,MATCH(Таблица1[№ п/п],Люкс!$H$3:$H$308,0),5),INDEX(ТМ!$A$3:$F$307,MATCH(Таблица1[№ п/п],ТМ!$H$3:$H$307,0),5))","v":10},{"$f":"IF(Таблица1[[#This Row],[№ п/п]]<=Люкс!$I$3,INDEX(Люкс!$A$3:$F$308,MATCH(Таблица1[№ п/п],Люкс!$H$3:$H$308,0),6),INDEX(ТМ!$A$3:$F$307,MATCH(Таблица1[№ п/п],ТМ!$H$3:$H$307,0),6))","v":20}]
[null,null,"Общая масса выбранных позиций",null,null,{"$f":"SUM(Таблица1[Масса по позиции])","v":390}]

{"sheet":"Лист1","index":3,"n_rows":0,"n_cols":0,"rows_kept":0,"cut":false,"hidden":false,"merged":[]}